bitfinex/quotes_ETHUSD_20241212
["timestamp","ask_amount","ask_price","bid_price","bid_amount"]
[1734032012197,0.786,3886.6,3885.3,1.02951]
[1734032012502,0.786,3886.6,3885.4,0.0228421]
[1734032012802,0.786,3886.6,3885.4,1.02948]
[1734032013206,2.57309,3886.4,3885.5,0.02283947]
[1734032013370,0.335909,3886.3,3885.5,0.02283947]
[1734032013569,2.57343,3885.9,3884.7,0.13168854]
[1734032013772,2.57348,3885.8,3884.7,0.13168854]
[1734032013972,2.57348,3885.8,3884.8,0.02285787]
[1734032014368,2.57333,3886.1,3884.0,3.64008865]
[1734032014606,0.786,3886.6,3884.2,1.02981]
[1734032014607,0.2909239,3886.0,3884.2,1.02981]
[1734032014796,0.786,3886.6,3884.4,0.55]
[1734032014968,0.786,3886.6,3885.0,1.02957]
[1734032014969,2.57312,3886.4,3885.0,1.02957]
[1734032015304,2.57312,3886.4,3885.1,0.02284999]
[1734032015510,2.57335,3886.0,3885.1,0.02284999]
[1734032015712,0.257335,3885.9,3884.3,0.55]
[1734032015876,2.57353,3885.8,3884.4,0.02286634]
[1734032016075,2.57354,3885.7,3884.4,1.02975]
[1734032016277,0.786,3885.8,3884.5,0.02284327]
[1734032016585,0.786,3885.8,3884.7,1.02967]
[1734032016905,0.3616735,3885.7,3884.8,0.02286858]
[1734032017072,2.9352235,3885.7,3884.4,1.02975]
[1734032017281,0.3616735,3885.7,3884.9,0.02286596]
[1734032017521,0.3616735,3885.7,3883.3,1.03003]
[1734032017522,3.44210982,3885.6,3883.3,1.03003]
[1734032017818,3.44210982,3885.6,3883.4,1.03001]
[1734032017819,0.786,3884.6,3883.4,1.03001]
[1734032017975,2.57413,3884.8,3883.4,0.02361581]
[1734032018175,0.257413,3884.8,3883.4,0.02361581]
[1734032018376,0.786,3884.9,3883.4,0.02361581]
[1734032018613,2.57425,3884.7,3883.4,0.02361581]
[1734032018770,2.57425,3884.7,3882.0,2.039502]
[1734032018771,3.0,3884.7,3882.0,2.039502]
[1734032018978,4.00097048,3884.6,3882.4,1.03026]
[1734032019200,0.786,3883.8,3882.1,1.05358098]
[1734032019397,0.786,3883.8,3882.2,0.2062703]
[1734032019607,0.786,3883.8,3882.2,0.23032106]
[1734032019997,0.786,3883.8,3882.3,1.03031]
[1734032020281,0.786,3883.8,3882.6,1.03021]
[1734032020475,0.786,3883.8,3882.8,1.03018]
[1734032020708,0.786,3883.8,3883.2,3.64008865]
[1734032020906,0.786,3883.8,3882.3,3.30847485]
[1734032021107,2.57445,3884.4,3883.0,1.0301]
[1734032021309,2.57445,3884.4,3883.1,0.02402757]
[1734032021483,2.57445,3884.4,3882.3,3.0]
[1734032021484,0.7879,3884.6,3882.9,3.64008865]
[1734032021689,2.57393,3885.1,3883.8,1.02991]
[1734032021888,3.72354452,3885.1,3883.8,1.02991]
[1734032022093,1.14960452,3885.1,3883.0,3.0]
[1734032022321,1.04311516,3885.8,3884.3,1.02976]
[1734032022322,0.7602,3885.7,3884.3,1.02976]
[1734032022477,0.7602,3885.7,3883.5,3.0]
[1734032022677,0.7602,3885.7,3884.0,0.55]
[1734032023035,0.7602,3885.7,3884.2,0.55]
[1734032023332,0.7602,3885.7,3884.7,1.02967]
[1734032023981,4.13750274,3886.8,3884.7,1.02967]
[1734032023982,0.7602,3886.2,3884.7,1.02966]
[1734032024181,0.7602,3886.2,3884.2,1.02979]
[1734032024182,0.333339,3886.1,3884.3,0.55]
[1734032024376,0.7602,3886.2,3884.3,0.55]
[1734032024640,2.57328,3886.1,3884.7,1.02967]
[1734032024916,0.7602,3886.2,3884.3,0.55]
[1734032025092,0.7602,3886.2,3884.9,1.02961]
[1734032025418,0.7602,3886.2,3884.7,0.55]
[1734032025419,0.7602,3886.2,3885.0,1.02959]
[1734032025589,1.093534,3886.2,3885.0,1.02959]
[1734032025990,1.093534,3886.2,3884.1,0.55]
[1734032026191,2.5734,3886.0,3884.7,1.02967]
[1734032026778,0.7602,3886.2,3885.4,1.02947]
[1734032026983,0.7602,3886.2,3884.8,0.55]
[1734032027223,0.7602,3886.2,3884.9,4.02962]
[1734032027385,0.7602,3886.2,3884.8,0.55]
[1734032027386,0.785,3886.7,3884.8,0.55]
[1734032027583,0.785,3886.7,3884.4,3.64008865]
[1734032027584,0.785,3886.7,3885.0,3.55]
[1734032027808,2.57223,3887.7,3886.2,1.02926]
[1734032028013,1.04311516,3888.0,3885.4,3.0]
[1734032028327,1.82903965,3888.2,3885.9,1.02934]
[1734032028328,1.65424967,3887.9,3885.9,1.02934]
[1734032028483,2.57195,3888.1,3886.7,1.02914]
[1734032028687,2.57195,3888.1,3886.8,1.0291]
[1734032028688,0.335695,3888.0,3886.8,1.0291]
[1734032029223,0.335695,3888.0,3886.0,3.0]
[1734032029224,0.335695,3888.0,3886.4,1.0292]
[1734032029398,2.57208,3887.9,3886.5,1.02917]
[1734032029717,0.785,3888.2,3887.0,1.02906]
[1734032029923,0.785,3888.2,3886.4,0.55]
[1734032030094,0.785,3888.2,3886.4,4.19008865]
[1734032030695,0.785,3888.2,3886.7,1.02912]
[1734032030893,0.785,3888.2,3886.8,0.55]
[1734032031090,0.785,3888.2,3886.7,1.02912]
[1734032031091,0.785,3888.2,3886.5,3.0]
[1734032031297,2.5721,3887.9,3886.5,1.02919]
[1734032031608,0.785,3888.2,3886.6,0.55]
[1734032031807,3.35691,3888.2,3886.9,1.02909]
[1734032032010,3.35691,3888.2,3886.3,1.02924]
[1734032032011,0.785,3888.2,3886.3,1.02924]
[1734032032224,0.785,3888.2,3884.9,2.04315049]
[1734032032225,2.57272,3887.0,3884.9,4.09805865]
[1734032032400,1.021572,3886.9,3884.9,4.09805865]
[1734032032601,1.021572,3886.9,3884.9,4.87026865]
[1734032032602,0.7643,3886.9,3884.9,4.87026865]
[1734032032941,0.7643,3886.9,3886.7,0.77186]
[1734032033234,3.0,3888.4,3885.9,3.64008865]
[1734032033235,0.7643,3888.3,3885.9,3.64008865]
[1734032033433,2.57216,3887.8,3886.4,0.77191]
[1734032033736,5.5718,3888.4,3885.6,3.02572697]
[1734032033737,0.7519,3887.4,3885.6,0.77208]
[1734032033921,0.7519,3887.4,3885.3,0.77213]
[1734032034124,2.57254,3887.2,3884.9,4.09805865]
[1734032034431,1.04311516,3887.9,3884.9,4.09805865]
[1734032034432,0.7519,3886.6,3885.2,0.77215]
[1734032034639,0.7519,3886.6,3884.9,4.09805865]
[1734032035000,0.7519,3886.6,3885.5,0.77209]
[1734032035401,0.7519,3886.6,3885.0,3.0]
[1734032035620,0.7519,3886.6,3884.4,3.64008865]
[1734032035824,0.7519,3886.6,3884.6,0.77228]
[1734032035825,2.57312,3886.4,3884.6,0.77228]
[1734032036335,0.7519,3886.6,3884.5,0.36400887]
[1734032036702,0.7519,3886.6,3884.9,0.7722]
[1734032036896,0.7519,3886.6,3884.5,0.77229]
[1734032037132,4.04311516,3887.1,3883.9,3.64008865]
[1734032037133,3.0,3886.7,3883.9,3.64008865]
[1734032037338,2.57366,3885.6,3884.3,0.77233]
[1734032037509,2.57344,3885.9,3884.4,0.7723]
[1734032037834,2.57344,3885.9,3883.9,3.64008865]
[1734032037835,0.3,3886.6,3884.1,0.77237]
[1734032038136,0.8304,3885.8,3884.6,0.77226]
[1734032038436,0.8304,3885.8,3884.8,0.77224]
[1734032038872,0.8304,3885.8,3883.9,3.64008865]
[1734032039000,0.8304,3885.8,3884.5,0.77228]
[1734032039342,0.8304,3885.8,3884.2,0.77235]
[1734032039544,2.57353,3885.7,3883.5,3.0]
[1734032040033,2.57382,3885.3,3883.8,0.77243]
[1734032040209,2.57382,3885.3,3883.9,0.77241]
[1734032040412,2.57388,3885.2,3883.9,0.77241]
[1734032040611,3.40387,3885.8,3883.9,0.7724]
[1734032040811,3.40387,3885.8,3883.6,1.32247]
[1734032040812,2.57362,3885.6,3884.2,0.77234]
[1734032041215,0.8304,3885.8,3884.2,0.77234]
[1734032041413,2.57375,3885.4,3883.7,0.77245]
[1734032041796,0.8304,3885.8,3883.8,0.432245]
[1734032041797,0.257375,3885.3,3883.8,0.432245]
[1734032041960,0.7555,3884.8,3883.6,0.77247]
[1734032042122,0.7555,3884.8,3884.0,0.77239]
[1734032042718,0.7555,3884.8,3883.6,3.0]
[1734032042719,0.7555,3884.8,3883.8,0.77243]
[1734032042916,0.7555,3884.8,3883.7,0.77245]
[1734032043207,2.5742,3884.7,3882.9,3.64008865]
[1734032043512,2.57427,3884.6,3883.0,0.36400887]
[1734032043714,0.01288,3883.5,3882.4,4.41279865]
[1734032043951,0.01288,3883.5,3882.3,0.77772]
[1734032044286,0.8071,3883.4,3882.3,0.005]
[1734032044562,2.57515,3883.3,3882.3,0.005]
[1734032044719,0.8071,3883.4,3882.3,0.005]
[1734032044904,0.8071,3883.4,3882.4,0.77271]
[1734032045104,0.01288,3883.5,3883.1,0.77257]
[1734032045304,0.01288,3883.5,3882.4,3.64008865]
[1734032045620,0.01288,3883.5,3882.5,0.3851359]
[1734032045785,0.01288,3883.5,3882.3,0.005]
[1734032045959,2.58791,3883.5,3882.3,0.005]
[1734032046490,0.7714,3883.4,3882.3,0.005]
[1734032046789,2.57572,3882.4,3882.3,0.005]
[1734032046990,5.57572,3882.4,3882.3,0.005]
[1734032047281,5.57572,3882.4,3881.0,0.0122924]
[1734032047282,2.57652,3881.2,3881.0,3e-06]
[1734032047626,3.0,3881.9,3881.0,3e-06]
[1734032047927,2.5765,3881.3,3881.0,3e-06]
[1734032048130,0.7714,3882.0,3881.0,3e-06]
[1734032048346,1.106122,3882.0,3881.0,3e-06]
[1734032048519,2.57616,3881.8,3881.0,3e-06]
[1734032048722,1.106122,3882.0,3881.0,3e-06]
[1734032048723,2.57633,3881.5,3881.0,3e-06]
[1734032048972,2.57642,3881.4,3881.0,3e-06]
[1734032049389,0.334722,3882.0,3881.0,3e-06]
[1734032049390,2.57653,3881.2,3881.0,3e-06]
[1734032049525,0.334722,3882.0,3881.0,3e-06]
[1734032049721,2.57639,3881.4,3881.0,3e-06]
[1734032049945,0.8319,3881.2,3881.0,3e-06]
[1734032050360,3.40845,3881.2,3881.0,3e-06]
[1734032050587,0.37029507,3881.1,3881.0,3e-06]
[1734032051941,3.37029507,3881.1,3879.0,0.1752677]
[1734032052350,0.37029507,3881.1,3879.0,0.1752677]
[1734032052653,3.64008865,3881.8,3879.1,0.02629708]
[1734032052865,3.64008865,3882.3,3879.4,0.77331]
[1734032053188,3.64008865,3882.3,3880.7,0.77304]
[1734032053373,0.7836,3882.2,3880.7,0.77304]
[1734032053536,2.57648,3881.3,3880.8,0.02624562]
[1734032053740,2.57648,3881.3,3879.2,3.0]
[1734032053741,2.834128,3881.3,3879.3,0.55]
[1734032053970,2.57631,3881.6,3880.9,0.02586581]
[1734032054172,2.57631,3881.6,3880.3,0.77311]
[1734032054471,0.7836,3882.2,3880.4,0.02588358]
[1734032054472,2.57607,3881.9,3880.4,0.02588358]
[1734032054659,3.7836,3882.2,3881.1,0.77297]
[1734032054660,0.7836,3882.2,3881.1,0.77297]
[1734032055072,0.7836,3882.2,3881.2,0.02586251]
[1734032055281,2.57592,3882.1,3881.2,0.02586251]
[1734032055437,2.57592,3882.1,3879.3,3.55]
[1734032055438,2.57658,3881.2,3878.8,3.77342]
[1734032055637,3.64008865,3881.8,3878.8,3.77342]
[1734032055638,3.64008865,3881.8,3879.4,3.0]
[1734032055840,3.64008865,3881.8,3879.7,0.77325]
[1734032055841,2.57638,3881.4,3879.7,0.77325]
[1734032056064,2.57619,3881.7,3879.5,0.02580428]
[1734032056236,0.7652,3881.3,3879.0,0.1752677]
[1734032056457,2.5766,3881.1,3879.8,0.77323]
[1734032056653,3.64008865,3881.8,3879.6,0.02578628]
[1734032056654,3.34135,3881.8,3880.1,0.77317]
[1734032056865,1.1329302,3881.8,3880.1,0.77317]
[1734032057095,3.34134,3881.8,3880.4,0.77311]
[1734032057471,0.7652,3881.8,3879.3,0.12946096]
[1734032057879,2.57647,3881.3,3880.0,0.77318]
[1734032058081,2.57619,3881.7,3879.9,0.7732]
[1734032058304,2.57645,3881.3,3880.1,0.0257813]
[1734032058503,4.40528865,3881.8,3879.3,0.12946096]
[1734032058672,2.5764,3881.4,3880.0,0.77319]
[1734032058877,4.40528865,3881.8,3880.0,1.0]
[1734032059232,2.57626,3881.6,3880.2,0.77314]
[1734032059510,4.40528865,3881.8,3880.0,1.0]
[1734032059708,0.44052887,3881.7,3880.3,0.02577296]
[1734032059914,3.01671887,3881.7,3880.4,0.7731]
[1734032060280,0.44052887,3881.7,3880.4,0.7731]
[1734032060612,2.57656,3881.2,3880.0,1.0]
[1734032060810,2.57656,3881.2,3880.5,0.02576871]
[1734032060972,2.834216,3881.2,3880.0,1.77319]
[1734032061172,2.57674,3880.9,3880.6,0.02580614]
[1734032061384,0.257656,3881.2,3880.0,1.0]
[1734032061385,0.7816,3880.6,3880.0,1.0]
[1734032061617,0.7816,3880.1,3880.0,1.0]
[1734032061984,2.57725,3880.1,3880.0,1.0]
[1734032062179,2.57686,3880.7,3880.0,1.0]
[1734032062382,2.910346,3880.7,3880.0,1.0]
[1734032063027,2.57696,3880.6,3880.0,1.0]
[1734032063186,2.57686,3880.7,3880.0,1.0]
[1734032063784,2.57692,3880.6,3880.0,1.0]
[1734032063980,2.57646,3881.3,3880.0,1.0]
[1734032064185,0.7608,3881.8,3880.0,1.0]
[1734032064382,0.7608,3881.8,3879.2,0.77335]
[1734032064598,0.7608,3881.8,3880.8,0.77302]
[1734032064792,0.7608,3881.8,3879.4,0.55]
[1734032065004,0.7608,3881.8,3879.3,0.31350064]
[1734032065005,0.7608,3881.8,3880.9,0.02543]
[1734032065215,0.7608,3881.8,3879.5,0.77328]
[1734032065216,0.7608,3881.8,3878.8,0.77342]
[1734032065422,2.57658,3881.1,3881.0,0.0254248]
[1734032065625,3.34997874,3881.1,3881.0,0.0254248]
[1734032065822,5.57675,3880.9,3878.2,3.64008865]
[1734032066024,2.57722,3880.2,3878.4,0.12639714]
[1734032066343,2.57761,3879.6,3877.7,0.77363]
[1734032066630,2.57766,3879.5,3877.7,0.12872734]
[1734032067036,0.7778,3880.2,3877.7,0.90235734]
[1734032067207,2.57731,3880.1,3878.0,0.77357]
[1734032067409,0.7778,3880.2,3878.3,0.77351]
[1734032067727,0.7778,3880.2,3877.0,1.02377093]
[1734032067728,2.57791,3879.1,3877.1,3.19729223]
[1734032067931,3.96999223,3879.2,3877.1,0.12624265]
[1734032068336,3.96999223,3879.2,3876.5,3.19729223]
[1734032068548,3.0,3880.0,3877.4,0.77369]
[1734032068549,3.96999223,3879.6,3877.4,0.77369]
[1734032068756,6.54758223,3879.6,3877.8,0.77361]
[1734032069067,3.96999223,3879.6,3877.0,0.1309773]
[1734032069375,4.4255538,3879.6,3877.0,0.1309773]
[1734032069525,2.57772,3879.4,3878.1,0.77357]
[1734032070045,4.4255538,3879.6,3877.0,0.1309773]
[1734032070216,0.7727,3879.6,3878.4,0.77351]
[1734032070432,3.6528538,3880.1,3877.1,0.77375]
[1734032070627,3.6528538,3879.6,3877.0,0.1309773]
[1734032070830,2.57771,3879.4,3877.4,0.77369]
[1734032071071,0.8085,3879.4,3877.3,0.77372]
[1734032071206,0.8085,3880.0,3877.0,0.1309773]
[1734032071406,3.6528538,3879.6,3878.0,0.77357]
[1734032071613,2.57791,3879.2,3877.8,0.77363]
[1734032071828,2.57772,3879.4,3878.0,0.77359]
[1734032072129,3.6528538,3879.6,3876.9,0.01502682]
[1734032072130,2.57791,3879.1,3876.9,0.01502682]
[1734032072459,0.8085,3879.3,3876.9,0.14521844]
[1734032072755,2.57785,3879.2,3877.2,0.77373]
[1734032073260,2.57765,3879.5,3878.2,0.77354]
[1734032073413,2.57773,3879.4,3878.0,0.77359]
[1734032073615,2.57773,3879.4,3877.7,0.77364]
[1734032073847,2.57779,3879.3,3878.0,0.77359]
[1734032074042,3.6528538,3879.6,3878.3,0.77353]
[1734032074244,3.6528538,3879.6,3878.4,0.77351]
[1734032074419,3.6528538,3880.1,3877.8,0.77362]
[1734032074620,3.6528538,3880.1,3878.3,0.77353]
[1734032074820,0.7771,3880.8,3878.6,0.77347]
[1734032075148,0.7771,3881.4,3879.1,0.0249292]
[1734032075381,0.25,3883.3,3880.6,0.77306]
[1734032075382,3.6528538,3882.0,3880.6,0.77306]
[1734032075585,2.94134538,3881.9,3880.6,0.77306]
[1734032075717,0.36528538,3881.9,3880.3,0.77311]
[1734032075918,0.36528538,3881.9,3880.4,0.02487653]
[1734032076144,0.36528538,3881.9,3879.1,0.57576752]
[1734032076453,2.94135538,3881.9,3880.6,0.77306]
[1734032076640,4.4500538,3881.0,3879.7,0.77325]
[1734032076841,4.4500538,3881.0,3880.7,0.02486354]
[1734032077052,6.2296338,3880.8,3879.2,0.77335]
[1734032077471,6.2296338,3880.8,3878.7,0.77344]
[1734032077472,3.6528538,3880.8,3878.7,0.77344]
[1734032077778,2.57658,3881.1,3879.8,0.77321]
[1734032077952,2.94186538,3881.1,3879.8,0.77321]
[1734032078119,3.6528538,3880.8,3878.5,0.13166029]
[1734032078319,2.57738,3880.0,3878.6,0.77346]
[1734032078543,2.57738,3880.0,3878.1,0.77356]
[1734032078749,2.57738,3880.0,3877.2,4.67658473]
[1734032078750,3.6528538,3880.3,3878.3,0.77352]
[1734032078951,2.57759,3879.6,3878.1,0.77356]
[1734032079150,2.57773,3879.4,3877.3,0.77371]
[1734032079350,2.57773,3879.4,3878.0,0.77359]
[1734032079753,0.257759,3879.5,3878.0,0.77359]
[1734032079966,0.257759,3879.5,3877.3,0.01343965]
[1734032080182,2.57759,3879.6,3878.1,0.77356]
[1734032080523,0.8186,3879.7,3878.3,0.77352]
[1734032080950,2.57718,3880.2,3878.5,0.77348]
[1734032081152,2.57748,3879.8,3878.2,0.77353]
[1734032081357,2.5776,3879.6,3878.0,0.77359]
[1734032081546,0.25776,3879.5,3877.6,0.77367]
[1734032081720,0.25776,3879.5,3877.4,0.7737]
[1734032081921,2.83541,3879.5,3878.0,0.77359]
[1734032082122,0.25776,3879.5,3877.2,0.77374]
[1734032082326,0.25776,3879.5,3877.9,0.77361]
[1734032082327,2.57773,3879.4,3877.9,0.77361]
[1734032082546,0.25776,3879.5,3876.9,0.01502682]
[1734032082747,2.57791,3879.1,3879.0,7.7e-06]
[1734032082956,2.57791,3879.1,3876.9,0.01502682]
[1734032082957,2.57811,3878.8,3876.9,0.01502682]
[1734032083173,2.57876,3877.9,3876.9,0.01502682]
[1734032083371,2.57881,3877.8,3876.9,0.01502682]
[1734032083534,0.8067,3878.1,3876.9,0.01502682]
[1734032083982,3.6528538,3878.7,3876.9,0.01502682]
[1734032084267,2.5787,3878.0,3876.9,0.01502682]
[1734032084465,2.57843,3878.4,3876.9,0.01502682]
[1734032084466,2.57874,3877.9,3876.9,0.01502682]
[1734032084675,6.2313638,3878.2,3876.9,0.01502682]
[1734032084840,2.5786,3878.1,3876.9,0.01502682]
[1734032085038,2.57865,3878.0,3876.9,0.01502682]
[1734032085338,2.57865,3878.0,3875.5,3.0]
[1734032085339,3.0,3876.5,3874.8,0.00184115]
[1734032085536,3.6528538,3874.9,3874.8,0.00184115]
[1734032086161,6.2335638,3874.9,3874.8,0.00184115]
[1734032086349,2.58051,3875.3,3874.8,0.00184115]
[1734032086673,2.58058,3875.1,3874.8,0.00184115]
[1734032086838,3.6528538,3875.5,3874.8,0.00184115]
[1734032087172,2.57927,3877.1,3874.8,0.00184115]
[1734032087173,2.57974,3876.4,3874.8,0.00184115]
[1734032087400,3.6528538,3876.7,3874.8,0.00184115]
[1734032087401,2.5802,3875.7,3874.8,0.00184115]
[1734032087687,0.3998378,3876.2,3874.8,0.00184115]
[1734032087902,2.58021,3875.7,3874.8,0.00184115]
[1734032088205,2.70881709,3876.2,3874.8,1.15e-06]
[1734032088206,2.58071,3874.9,3874.8,1.15e-06]
[1734032088374,2.70882709,3876.2,3874.8,1.15e-06]
[1734032088375,2.58068,3875.0,3874.8,1.15e-06]
[1734032088679,0.8104,3874.9,3874.8,1.15e-06]
[1734032089377,0.8104,3874.9,3874.6,0.00233432]
[1734032089378,2.58077,3874.8,3874.6,4.32e-06]
[1734032089545,6.2336238,3874.8,3874.6,4.32e-06]
[1734032089736,0.8104,3874.9,3874.6,4.32e-06]
[1734032089936,2.58033,3875.5,3874.6,4.32e-06]
[1734032090183,0.7845,3875.7,3874.6,4.32e-06]
[1734032090339,2.57989,3876.2,3874.6,4.32e-06]
[1734032090538,0.257989,3876.2,3874.6,0.77426432]
[1734032090772,4.4279538,3876.9,3874.7,0.0267742]
[1734032090961,0.7751,3876.9,3874.6,4.32e-06]
[1734032091170,2.57989,3876.2,3874.6,4.32e-06]
[1734032091368,2.57989,3876.2,3874.7,0.02677831]
[1734032091569,2.57947,3876.8,3874.7,0.02677831]
[1734032091748,2.57984,3876.3,3874.6,4.32e-06]
[1734032091947,2.70965509,3877.5,3874.6,4.32e-06]
[1734032091948,2.58044,3875.3,3874.6,4.32e-06]
[1734032092154,2.5808,3874.8,3874.6,4.32e-06]
[1734032094660,2.58078,3874.8,3874.6,4.32e-06]
[1734032095691,6.2336338,3874.8,3874.6,4.32e-06]
[1734032096069,2.58078,3874.8,3874.6,4.32e-06]
[1734032096387,0.7832,3875.0,3874.6,4.32e-06]
[1734032096951,3.1319606,3875.7,3874.6,4.32e-06]
[1734032096952,2.58046,3875.3,3874.6,4.32e-06]
[1734032097154,2.58067,3875.0,3874.6,4.32e-06]
[1734032097457,2.58077,3874.9,3874.6,4.32e-06]
[1734032097665,2.5808,3874.8,3874.6,4.32e-06]
[1734032098689,0.258067,3875.0,3874.6,4.32e-06]
[1734032098986,2.58038,3875.4,3874.6,4.32e-06]
[1734032099389,0.7832,3875.6,3874.6,4.32e-06]
[1734032099568,2.5806,3875.1,3874.6,4.32e-06]
[1734032099959,6.2328238,3876.1,3874.6,4.32e-06]
[1734032099960,2.57995,3876.1,3874.6,4.32e-06]
[1734032100161,0.7832,3876.5,3874.6,4.32e-06]
[1734032100384,2.57999,3876.0,3874.6,4.32e-06]
[1734032100587,4.4360538,3876.5,3874.6,4.32e-06]
[1734032100788,2.58079,3874.8,3874.6,4.32e-06]
[1734032101894,2.58079,3874.8,3872.8,0.01395323]
[1734032101895,2.58118,3874.2,3872.8,0.01395323]
[1734032102203,0.7835,3874.1,3872.8,0.01395323]
[1734032102370,3.36479,3874.1,3872.8,0.01395323]
[1734032102762,0.7835,3874.1,3872.8,0.01395323]
[1734032102960,2.58102,3874.5,3872.8,0.01395323]
[1734032103294,3.0,3874.8,3872.8,0.01395323]
[1734032103295,0.7745,3874.6,3872.8,0.01395323]
[1734032103657,0.7745,3874.6,3872.9,0.0261456]
[1734032103864,2.58079,3874.8,3872.9,0.0261456]
[1734032104059,2.58079,3874.8,3872.9,0.77461]
[1734032104261,0.7872,3875.1,3872.8,0.01395323]
[1734032104663,2.58106,3874.4,3872.8,0.78857323]
[1734032104867,2.58106,3874.4,3872.9,0.02613484]
[1734032105102,2.58113,3874.3,3872.9,0.02613484]
[1734032105273,2.58064,3875.0,3873.1,0.77456]
[1734032105474,2.58078,3874.8,3873.1,0.77456]
[1734032105832,0.7872,3875.1,3872.8,0.01395323]
[1734032105833,2.58096,3874.6,3872.8,0.01395323]
[1734032106055,0.7872,3875.1,3872.8,0.01395323]
[1734032106182,2.58078,3874.8,3872.8,0.78856323]
[1734032106381,3.6528538,3875.9,3872.9,0.02615227]
[1734032106382,2.58013,3875.8,3872.9,0.02615227]
[1734032106613,3.6528538,3874.9,3872.9,0.02615227]
[1734032106788,2.58159,3873.6,3872.9,0.02615227]
[1734032106978,2.58159,3873.6,3872.8,0.01395323]
[1734032106979,2.58197,3873.0,3872.8,0.01395323]
[1734032107179,2.58204,3872.9,3872.8,0.01395323]
[1734032108519,2.58204,3872.9,3872.7,0.00195742]
[1734032108520,3.0,3872.8,3871.2,0.1625601]
[1734032108724,2.58284,3871.7,3871.2,0.1625601]
[1734032108939,3.6528538,3872.4,3871.2,0.1625601]
[1734032109080,3.0,3872.8,3871.2,0.1625601]
[1734032109443,0.25,3873.9,3871.2,0.1625601]
[1734032109444,3.0,3874.2,3871.5,3.6528538]
[1734032109582,2.58194,3873.1,3871.6,0.77487]
[1734032109782,0.7955,3872.2,3871.7,0.02408165]
[1734032109984,0.7955,3872.2,3871.6,0.77486]
[1734032110218,0.7955,3872.2,3871.7,0.02332293]
[1734032110443,0.7955,3872.2,3872.1,0.77477]
[1734032110649,0.7955,3872.2,3871.2,0.18838332]
[1734032110650,0.7955,3872.2,3871.2,0.1625601]
[1734032110781,0.12621213,3874.2,3872.1,0.02255358]
[1734032111116,2.58274,3871.9,3871.2,0.1625601]
[1734032111315,6.2346238,3873.3,3871.2,0.1625601]
[1734032111316,2.58278,3871.8,3871.2,0.1625601]
[1734032111516,0.8152,3872.5,3871.2,0.1625601]
[1734032111883,2.58245,3872.3,3871.2,0.1625601]
[1734032112090,0.25,3874.3,3870.3,0.035175]
[1734032112091,2.58126,3874.1,3872.7,0.77463]
[1734032112394,2.58181,3873.3,3871.0,3.6528538]
[1734032112739,0.8152,3873.6,3870.8,0.01436844]
[1734032112885,2.58219,3872.7,3871.0,0.77499]
[1734032113087,0.8152,3873.3,3871.2,0.77494]
[1734032113330,0.8152,3873.3,3870.8,0.01436844]
[1734032113531,2.582,3873.0,3870.8,0.75949869]
[1734032113700,2.582,3873.0,3870.8,0.73367181]
[1734032113901,2.582,3873.0,3871.0,0.77499]
[1734032114096,2.582,3873.0,3870.8,0.73367181]
[1734032114302,0.8152,3873.3,3871.0,3.6528538]
[1734032114537,0.807,3874.4,3871.7,0.77485]
[1734032114712,0.807,3875.2,3873.1,0.77455]
[1734032114926,0.807,3875.2,3873.0,3.6528538]
[1734032115203,2.5795,3876.8,3873.0,3.6528538]
[1734032115204,3.6528538,3876.9,3873.6,3.0]
[1734032115429,0.25,3878.3,3873.6,3.0]
[1734032115430,3.6528538,3877.4,3874.2,0.77435]
[1734032115602,3.6528538,3877.4,3874.1,3.24999093]
[1734032115603,2.57955,3876.7,3875.3,0.77412]
[1734032115802,0.39476443,3876.8,3875.6,0.77406]
[1734032115803,0.26708005,3876.8,3875.6,0.77406]
[1734032115999,2.57842,3878.4,3875.1,3.0]
[1734032116000,0.13204227,3878.0,3875.1,3.0]
[1734032116202,0.13204227,3878.0,3875.7,0.77405]
[1734032116203,2.57865,3878.0,3875.7,0.77405]
[1734032116412,0.807,3877.2,3876.6,0.77385]
[1734032116611,0.807,3877.2,3875.7,0.77404]
[1734032116902,0.807,3877.2,3875.8,0.44268938]
[1734032117304,0.807,3877.2,3875.4,0.7741]
[1734032117305,2.57919,3877.2,3875.4,0.7741]
[1734032117536,0.12721989,3878.1,3874.7,0.77425]
[1734032117537,2.57913,3877.3,3874.7,0.77425]
[1734032117747,2.57946,3876.8,3875.3,0.77413]
[1734032117927,2.57878,3877.8,3875.3,0.77411]
[1734032118104,0.7595,3877.2,3875.4,0.02580089]
[1734032118304,0.7595,3877.2,3875.6,1.32407]
[1734032118542,0.7595,3877.2,3875.7,0.50027221]
[1734032118743,0.26699724,3878.5,3875.7,0.50027221]
[1734032119041,0.26699724,3878.5,3874.5,3.6528538]
[1734032119042,3.6528538,3877.9,3874.5,3.6528538]
[1734032119343,2.57884,3877.7,3874.5,3.6786558]
[1734032119563,0.7595,3877.8,3875.0,3.6528538]
[1734032119564,2.57904,3877.5,3875.0,3.6528538]
[1734032119785,2.57905,3877.4,3875.8,0.77402]
[1734032120054,3.33829,3877.8,3875.9,0.774]
[1734032120055,2.57895,3877.6,3875.9,0.774]
[1734032120207,2.57901,3877.5,3875.9,0.774]
[1734032120404,0.7595,3877.8,3876.2,0.77395]
[1734032120638,0.7595,3877.8,3875.3,0.77413]
[1734032120639,2.57949,3876.8,3875.3,0.77413]
[1734032120906,0.7595,3877.8,3875.0,3.6528538]
[1734032121077,3.6528538,3876.9,3874.0,3.6528538]
[1734032121213,2.58047,3875.3,3874.1,0.44272838]
[1734032121417,2.58088,3874.7,3873.0,0.77457]
[1734032121614,2.58088,3874.7,3872.6,0.77466]
[1734032121615,2.58088,3874.7,3872.7,0.77465]
[1734032121851,2.58088,3874.7,3873.2,0.77455]
[1734032122527,2.58053,3875.2,3873.2,0.77455]